[Event "November 21 Early 2023"]
[Site "https://www.chess.com"]
[Date "2023.11.21"]
[Round "3"]
[White "Erzhanov, Arman"]
[Black "Terry, Renato"]
[Result "0-1"]
[Board "74"]
[TimeControl "180+1"]
[WhiteFideId "4138821"]
[BlackFideId "3803457"]
[WhiteElo "2171"]
[BlackElo "2572"]
[WhiteTeam "KAZ"]
[BlackTeam "PER"]
[WhiteClock "0:00:12"]
[BlackClock "0:00:12"]

1. e4 {[%clk 0:02:51]}  c5 {[%clk 0:02:54]} 2. Nf3 {[%clk 0:02:52]}  e6 {[%clk 0:02:54]} 3. b3 {[%clk 0:02:51]}  Nf6 {[%clk 0:02:52]} 4. e5 {[%clk 0:02:51]}  Nd5 {[%clk 0:02:52]} 5. Bb2 {[%clk 0:02:52]}  Nc6 {[%clk 0:02:51]} 6. g3 {[%clk 0:02:53]}  Be7 {[%clk 0:02:51]} 7. Bg2 {[%clk 0:02:53]}  h5 {[%clk 0:02:50]} 8. h4 {[%clk 0:02:46]}  b5 {[%clk 0:02:48]} 9. c4 {[%clk 0:02:40]}  bxc4 {[%clk 0:02:33]} 10. bxc4 {[%clk 0:02:41]}  Ndb4 {[%clk 0:02:33]} 11. d4 {[%clk 0:02:41]}  cxd4 {[%clk 0:02:30]} 12. a3 {[%clk 0:02:38]}  Na6 {[%clk 0:02:25]} 13. Nxd4 {[%clk 0:02:38]}  Bb7 {[%clk 0:02:25]} 14. O-O {[%clk 0:02:21]}  Nc5 {[%clk 0:02:15]} 15. Nb5 {[%clk 0:02:16]}  Na5 {[%clk 0:02:02]} 16. Bxb7 {[%clk 0:02:01]}  Ncxb7 {[%clk 0:02:01]} 17. Nd2 {[%clk 0:01:58]}  a6 {[%clk 0:01:58]} 18. Nd4 {[%clk 0:01:50]}  Nc5 {[%clk 0:01:55]} 19. Re1 {[%clk 0:01:45]}  Nd3 {[%clk 0:01:53]} 20. Bc3 {[%clk 0:01:31]}  Nxe1 {[%clk 0:01:49]} 21. Qxe1 {[%clk 0:01:32]}  Rc8 {[%clk 0:01:46]} 22. Qe2 {[%clk 0:01:07]}  Qc7 {[%clk 0:01:36]} 23. Bb4 {[%clk 0:01:00]}  Nc6 {[%clk 0:01:07]} 24. Bxe7 {[%clk 0:00:48]}  Nxe7 {[%clk 0:01:08]} 25. Rc1 {[%clk 0:00:35]}  Qc5 {[%clk 0:01:02]} 26. Qe3 {[%clk 0:00:30]}  Ng6 {[%clk 0:01:02]} 27. f4 {[%clk 0:00:29]}  O-O {[%clk 0:00:53]} 28. Ne4 {[%clk 0:00:29]}  Qa7 {[%clk 0:00:53]} 29. c5 {[%clk 0:00:29]}  Ne7 {[%clk 0:00:51]} 30. Qf3 {[%clk 0:00:26]}  g6 {[%clk 0:00:38]} 31. g4 {[%clk 0:00:26]}  Qb8 {[%clk 0:00:31]} 32. gxh5 {[%clk 0:00:23]}  Qb2 {[%clk 0:00:32]} 33. Rd1 {[%clk 0:00:20]}  Kg7 {[%clk 0:00:32]} 34. hxg6 {[%clk 0:00:16]}  Rh8 {[%clk 0:00:27]} 35. gxf7 {[%clk 0:00:14]}  Rh6 {[%clk 0:00:22]} 36. Rd2 {[%clk 0:00:10]}  Rg6+ {[%clk 0:00:20]} 37. Kh2 {[%clk 0:00:10]}  Qc1 {[%clk 0:00:19]} 38. Rg2 {[%clk 0:00:10]}  Rh8 {[%clk 0:00:14]} 39. h5 {[%clk 0:00:09]}  Rxg2+ {[%clk 0:00:08]} 40. Qxg2+ {[%clk 0:00:09]}  Kf8 {[%clk 0:00:08]} 41. Nf6 {[%clk 0:00:07]}  Qxf4+ {[%clk 0:00:08]} 42. Kh3 {[%clk 0:00:06]}  Qxd4 {[%clk 0:00:03]} 43. Qa8+ {[%clk 0:00:05]}  Kxf7 {[%clk 0:00:03]} 44. Qxh8 {[%clk 0:00:05]}  Qxe5 {[%clk 0:00:03]} 45. Qh7+ {[%clk 0:00:02]}  Kxf6 {[%clk 0:00:03]} 46. Qh8+ {[%clk 0:00:03]}  Kf5 {[%clk 0:00:03]} 47. Qh7+ {[%clk 0:00:03]}  Kf4 {[%clk 0:00:04]} 48. Qxe7 {[%clk 0:00:04]}  Qxh5+ {[%clk 0:00:03]} 49. Kg2 {[%clk 0:00:04]}  Qf3+ {[%clk 0:00:03]} 50. Kg1 {[%clk 0:00:05]}  Qd1+ {[%clk 0:00:02]} 51. Kh2 {[%clk 0:00:05]}  Qe2+ {[%clk 0:00:03]} 52. Kg1 {[%clk 0:00:05]}  Qe3+ {[%clk 0:00:03]} 53. Kh2 {[%clk 0:00:06]}  Qf2+ {[%clk 0:00:03]} 54. Kh1 {[%clk 0:00:05]}  Qf3+ {[%clk 0:00:03]} 55. Kh2 {[%clk 0:00:06]}  Qe2+ {[%clk 0:00:03]} 56. Kh1 {[%clk 0:00:06]}  Qd1+ {[%clk 0:00:03]} 57. Kh2 {[%clk 0:00:07]}  Qd2+ {[%clk 0:00:04]} 58. Kh1 {[%clk 0:00:07]}  Qd5+ {[%clk 0:00:04]} 59. Kh2 {[%clk 0:00:07]}  Ke3 {[%clk 0:00:04]} 60. Qf7 {[%clk 0:00:04]}  Kd4 {[%clk 0:00:03]} 61. Qf2+ {[%clk 0:00:03]}  Kc4 {[%clk 0:00:03]} 62. Qc2+ {[%clk 0:00:01]}  Kb5 {[%clk 0:00:03]} 63. Qb2+ {[%clk 0:00:01]}  Kxc5 {[%clk 0:00:02]} 64. Qb4+ {[%clk 0:00:02]}  Kc6 {[%clk 0:00:03]} 65. Qc3+ {[%clk 0:00:02]}  Qc5 {[%clk 0:00:03]} 66. Qf3+ {[%clk 0:00:02]}  Kc7 {[%clk 0:00:04]} 67. Qf4+ {[%clk 0:00:02]}  Qd6 {[%clk 0:00:04]} 68. Kg3 {[%clk 0:00:00]}  Qxf4+ {[%clk 0:00:03]} 69. Kxf4 {[%clk 0:00:01]}  Kc6 {[%clk 0:00:04]} 70. Ke4 {[%clk 0:00:02]}  Kc5 {[%clk 0:00:04]} 71. Kd3 {[%clk 0:00:03]}  d5 {[%clk 0:00:05]} 72. Kc3 {[%clk 0:00:04]}  e5 {[%clk 0:00:06]} 73. Kd3 {[%clk 0:00:05]}  e4+ {[%clk 0:00:07]} 74. Kc3 {[%clk 0:00:06]}  d4+ {[%clk 0:00:07]} 75. Kd2 {[%clk 0:00:06]}  Kc4 {[%clk 0:00:07]} 76. Ke2 {[%clk 0:00:07]}  e3 {[%clk 0:00:08]} 77. Kd1 {[%clk 0:00:08]}  Kd3 {[%clk 0:00:09]} 78. Ke1 {[%clk 0:00:09]}  Kc2 {[%clk 0:00:09]} 79. Ke2 {[%clk 0:00:09]}  d3+ {[%clk 0:00:09]} 80. Kxe3 {[%clk 0:00:09]}  d2 {[%clk 0:00:10]} 81. Kd4 {[%clk 0:00:10]}  d1=Q+ {[%clk 0:00:11]} 82. Kc4 {[%clk 0:00:11]}  Qd3+ {[%clk 0:00:11]} 83. Kb4 {[%clk 0:00:12]}  Qb5# {[%clk 0:00:12]} 0-1

[Event "November 21 Early 2023"]
[Site "https://www.chess.com"]
[Date "2023.11.21"]
[Round "3"]
[White "Pinto, Daniel"]
[Black "Ibarra Jerez, Jose Carlos"]
[Result "0-1"]
[Board "76"]
[TimeControl "180+1"]
[WhiteFideId "3303144"]
[BlackFideId "2226332"]
[WhiteElo "2149"]
[BlackElo "2634"]
[WhiteTeam "BOL"]
[BlackTeam "ESP"]
[WhiteClock "0:00:00"]
[BlackClock "0:00:13"]

1. e4 {[%clk 0:03:00]}  c5 {[%clk 0:02:57]} 2. Nf3 {[%clk 0:02:59]}  e6 {[%clk 0:02:56]} 3. c3 {[%clk 0:02:57]}  Nf6 {[%clk 0:02:56]} 4. e5 {[%clk 0:02:57]}  Nd5 {[%clk 0:02:57]} 5. d4 {[%clk 0:02:57]}  cxd4 {[%clk 0:02:57]} 6. cxd4 {[%clk 0:02:58]}  d6 {[%clk 0:02:57]} 7. Bc4 {[%clk 0:02:48]}  Be7 {[%clk 0:02:56]} 8. O-O {[%clk 0:02:47]}  O-O {[%clk 0:02:56]} 9. Nbd2 {[%clk 0:02:29]}  Nc6 {[%clk 0:02:47]} 10. Re1 {[%clk 0:02:29]}  Bd7 {[%clk 0:02:37]} 11. Ne4 {[%clk 0:02:22]}  dxe5 {[%clk 0:02:36]} 12. dxe5 {[%clk 0:02:22]}  Rc8 {[%clk 0:02:31]} 13. a3 {[%clk 0:02:10]}  Qb6 {[%clk 0:02:21]} 14. Bd3 {[%clk 0:01:13]}  Rfd8 {[%clk 0:02:14]} 15. Neg5 {[%clk 0:00:56]}  h6 {[%clk 0:02:11]} 16. Nxf7 {[%clk 0:00:37]}  Kxf7 {[%clk 0:01:52]} 17. Ng5+ {[%clk 0:00:32]}  Kg8 {[%clk 0:01:52]} 18. Qh5 {[%clk 0:00:20]}  Be8 {[%clk 0:01:28]} 19. Qg4 {[%clk 0:00:20]}  Bxg5 {[%clk 0:00:47]} 20. Bxg5 {[%clk 0:00:20]}  hxg5 {[%clk 0:00:47]} 21. Qxe6+ {[%clk 0:00:16]}  Bf7 {[%clk 0:00:43]} 22. Qh3 {[%clk 0:00:17]}  g6 {[%clk 0:00:18]} 23. e6 {[%clk 0:00:17]}  Be8 {[%clk 0:00:18]} 24. Be4 {[%clk 0:00:03]}  Nce7 {[%clk 0:00:16]} 25. Rad1 {[%clk 0:00:01]}  Qxb2 {[%clk 0:00:15]} 26. Qg4 {[%clk 0:00:00]}  Qf6 {[%clk 0:00:13]} 0-1

[Event "November 21 Early 2023"]
[Site "https://www.chess.com"]
[Date "2023.11.21"]
[Round "3"]
[White "Ter-Sahakyan, Samvel"]
[Black "Kovacsy, Barnabas"]
[Result "1-0"]
[Board "77"]
[TimeControl "180+1"]
[WhiteFideId "13302531"]
[BlackFideId "769290"]
[WhiteElo "2556"]
[BlackElo "2130"]
[WhiteTeam "ARM"]
[BlackTeam "HUN"]
[WhiteClock "0:01:12"]
[BlackClock "0:01:29"]

1. d4 {[%clk 0:03:00]}  Nf6 {[%clk 0:02:59]} 2. c4 {[%clk 0:03:00]}  g6 {[%clk 0:02:59]} 3. Nc3 {[%clk 0:03:00]}  d5 {[%clk 0:03:00]} 4. cxd5 {[%clk 0:02:58]}  Nxd5 {[%clk 0:03:01]} 5. Bd2 {[%clk 0:02:59]}  Nxc3 {[%clk 0:02:51]} 6. Bxc3 {[%clk 0:02:58]}  Bg7 {[%clk 0:02:49]} 7. e4 {[%clk 0:02:59]}  O-O {[%clk 0:02:47]} 8. Qd2 {[%clk 0:02:59]}  b6 {[%clk 0:02:17]} 9. h4 {[%clk 0:02:57]}  Bb7 {[%clk 0:02:16]} 10. f3 {[%clk 0:02:56]}  e5 {[%clk 0:02:10]} 11. d5 {[%clk 0:02:40]}  c6 {[%clk 0:02:10]} 12. d6 {[%clk 0:02:38]}  Nd7 {[%clk 0:02:03]} 13. h5 {[%clk 0:02:36]}  Nc5 {[%clk 0:02:03]} 14. hxg6 {[%clk 0:02:35]}  hxg6 {[%clk 0:02:03]} 15. g4 {[%clk 0:02:07]}  Na4 {[%clk 0:01:58]} 16. Qh2 {[%clk 0:01:51]}  Re8 {[%clk 0:01:50]} 17. Bd2 {[%clk 0:01:13]}  Qxd6 {[%clk 0:01:43]} 18. Rd1 {[%clk 0:01:13]}  Qf8 {[%clk 0:01:29]} 19. Qh7# {[%clk 0:01:12]} 1-0

[Event "November 21 Early 2023"]
[Site "https://www.chess.com"]
[Date "2023.11.21"]
[Round "3"]
[White "Kamsky, Gata"]
[Black "Eugene, Floryan"]
[Result "1-0"]
[Board "78"]
[TimeControl "180+1"]
[WhiteFideId "2000024"]
[BlackFideId "20694784"]
[WhiteElo "2660"]
[BlackElo "2369"]
[WhiteTeam "USA"]
[BlackTeam "FRA"]
[WhiteClock "0:00:43"]
[BlackClock "0:00:09"]

1. d4 {[%clk 0:02:59]}  f5 {[%clk 0:03:00]} 2. Nc3 {[%clk 0:02:54]}  Nf6 {[%clk 0:03:00]} 3. Bg5 {[%clk 0:02:50]}  d5 {[%clk 0:03:00]} 4. e3 {[%clk 0:02:48]}  e6 {[%clk 0:02:49]} 5. Nf3 {[%clk 0:02:47]}  Bd6 {[%clk 0:02:46]} 6. Bd3 {[%clk 0:02:46]}  O-O {[%clk 0:02:45]} 7. O-O {[%clk 0:02:46]}  Bd7 {[%clk 0:02:45]} 8. Ne2 {[%clk 0:02:45]}  Be8 {[%clk 0:02:44]} 9. Ne5 {[%clk 0:02:37]}  Bh5 {[%clk 0:02:42]} 10. f3 {[%clk 0:02:36]}  Nbd7 {[%clk 0:02:39]} 11. Nf4 {[%clk 0:02:32]}  Qe8 {[%clk 0:02:13]} 12. Bxf6 {[%clk 0:02:24]}  Nxf6 {[%clk 0:01:58]} 13. c4 {[%clk 0:02:23]}  c6 {[%clk 0:01:48]} 14. Qb3 {[%clk 0:02:22]}  Qe7 {[%clk 0:01:34]} 15. cxd5 {[%clk 0:02:20]}  cxd5 {[%clk 0:01:34]} 16. Rac1 {[%clk 0:02:19]}  Be8 {[%clk 0:01:29]} 17. Be2 {[%clk 0:02:09]}  b6 {[%clk 0:01:20]} 18. Nfd3 {[%clk 0:02:05]}  Bd7 {[%clk 0:01:12]} 19. Nxd7 {[%clk 0:01:55]}  Nxd7 {[%clk 0:01:11]} 20. Rc6 {[%clk 0:01:53]}  Rac8 {[%clk 0:01:10]} 21. Rfc1 {[%clk 0:01:53]}  Rxc6 {[%clk 0:01:08]} 22. Rxc6 {[%clk 0:01:53]}  Rd8 {[%clk 0:00:41]} 23. f4 {[%clk 0:01:50]}  Nb8 {[%clk 0:00:36]} 24. Rc3 {[%clk 0:01:48]}  g5 {[%clk 0:00:36]} 25. Ne5 {[%clk 0:01:39]}  Bxe5 {[%clk 0:00:36]} 26. fxe5 {[%clk 0:01:39]}  g4 {[%clk 0:00:27]} 27. Qc2 {[%clk 0:01:35]}  Nd7 {[%clk 0:00:20]} 28. Rc7 {[%clk 0:01:34]}  a5 {[%clk 0:00:16]} 29. Bb5 {[%clk 0:01:33]}  Qb4 {[%clk 0:00:15]} 30. Qe2 {[%clk 0:01:25]}  Nf8 {[%clk 0:00:14]} 31. a3 {[%clk 0:01:25]}  Qb3 {[%clk 0:00:13]} 32. Rc3 {[%clk 0:01:17]}  Qa2 {[%clk 0:00:11]} 33. Qc2 {[%clk 0:01:16]}  Qa1+ {[%clk 0:00:10]} 34. Qc1 {[%clk 0:01:16]}  Qxc1+ {[%clk 0:00:10]} 35. Rxc1 {[%clk 0:01:15]}  Ng6 {[%clk 0:00:06]} 36. g3 {[%clk 0:01:15]}  Nf8 {[%clk 0:00:05]} 37. Rc6 {[%clk 0:01:13]}  Rb8 {[%clk 0:00:05]} 38. Rc7 {[%clk 0:01:13]}  Kh8 {[%clk 0:00:05]} 39. Kf2 {[%clk 0:01:11]}  Kg8 {[%clk 0:00:05]} 40. Ke2 {[%clk 0:01:11]}  Ng6 {[%clk 0:00:04]} 41. Kd2 {[%clk 0:01:04]}  Nf8 {[%clk 0:00:04]} 42. Kc3 {[%clk 0:01:03]}  Ng6 {[%clk 0:00:04]} 43. Kb3 {[%clk 0:01:03]}  Nf8 {[%clk 0:00:05]} 44. Ka4 {[%clk 0:01:03]}  Ng6 {[%clk 0:00:04]} 45. Ba6 {[%clk 0:00:58]}  Nf8 {[%clk 0:00:04]} 46. Kb5 {[%clk 0:00:58]}  h5 {[%clk 0:00:03]} 47. Bb7 {[%clk 0:00:57]}  Ng6 {[%clk 0:00:01]} 48. Kxb6 {[%clk 0:00:55]}  h4 {[%clk 0:00:02]} 49. Kxa5 {[%clk 0:00:54]}  hxg3 {[%clk 0:00:02]} 50. hxg3 {[%clk 0:00:53]}  Re8 {[%clk 0:00:02]} 51. Kb6 {[%clk 0:00:53]}  Rf8 {[%clk 0:00:01]} 52. a4 {[%clk 0:00:53]}  Re8 {[%clk 0:00:01]} 53. a5 {[%clk 0:00:53]}  Rf8 {[%clk 0:00:02]} 54. a6 {[%clk 0:00:53]}  f4 {[%clk 0:00:02]} 55. exf4 {[%clk 0:00:52]}  Nxf4 {[%clk 0:00:03]} 56. a7 {[%clk 0:00:49]}  Nd3 {[%clk 0:00:03]} 57. Bc8 {[%clk 0:00:48]}  Nxb2 {[%clk 0:00:03]} 58. a8=Q {[%clk 0:00:47]}  Nc4+ {[%clk 0:00:04]} 59. Rxc4 {[%clk 0:00:47]}  dxc4 {[%clk 0:00:05]} 60. Bxe6+ {[%clk 0:00:46]}  Kg7 {[%clk 0:00:05]} 61. Qxf8+ {[%clk 0:00:46]}  Kxf8 {[%clk 0:00:05]} 62. Bxc4 {[%clk 0:00:47]}  Ke7 {[%clk 0:00:06]} 63. d5 {[%clk 0:00:46]}  Kd7 {[%clk 0:00:07]} 64. d6 {[%clk 0:00:46]}  Ke8 {[%clk 0:00:06]} 65. Kc7 {[%clk 0:00:46]}  Kf8 {[%clk 0:00:06]} 66. d7 {[%clk 0:00:46]}  Kg7 {[%clk 0:00:07]} 67. d8=Q {[%clk 0:00:46]}  Kh6 {[%clk 0:00:08]} 68. Qf6+ {[%clk 0:00:44]}  Kh7 {[%clk 0:00:08]} 69. e6 {[%clk 0:00:44]}  Kg8 {[%clk 0:00:08]} 70. e7+ {[%clk 0:00:44]}  Kh7 {[%clk 0:00:09]} 71. Bd3+ {[%clk 0:00:44]}  Kg8 {[%clk 0:00:09]} 72. e8=R# {[%clk 0:00:43]} 1-0

[Event "November 21 Early 2023"]
[Site "https://www.chess.com"]
[Date "2023.11.21"]
[Round "3"]
[White "Kuegel, Tobias"]
[Black "Galaktionov, Artem"]
[Result "0-1"]
[Board "80"]
[TimeControl "180+1"]
[WhiteFideId "4636295"]
[BlackFideId "24175471"]
[WhiteElo "2213"]
[BlackElo "2367"]
[WhiteTeam "GER"]
[BlackTeam "RUS"]
[WhiteClock "0:00:00"]
[BlackClock "0:01:27"]

1. e4 {[%clk 0:03:00]}  c6 {[%clk 0:03:00]} 2. Nc3 {[%clk 0:03:00]}  d6 {[%clk 0:03:00]} 3. Nf3 {[%clk 0:03:01]}  g6 {[%clk 0:02:59]} 4. d4 {[%clk 0:02:56]}  Bg7 {[%clk 0:02:55]} 5. Be2 {[%clk 0:02:56]}  Nd7 {[%clk 0:02:55]} 6. O-O {[%clk 0:02:56]}  e5 {[%clk 0:02:53]} 7. Be3 {[%clk 0:02:44]}  Ngf6 {[%clk 0:02:53]} 8. h3 {[%clk 0:02:44]}  Qe7 {[%clk 0:02:52]} 9. Qd2 {[%clk 0:02:43]}  O-O {[%clk 0:02:51]} 10. Rfe1 {[%clk 0:02:38]}  exd4 {[%clk 0:02:50]} 11. Bxd4 {[%clk 0:02:28]}  Nxe4 {[%clk 0:02:49]} 12. Nxe4 {[%clk 0:02:20]}  Qxe4 {[%clk 0:02:49]} 13. Bc4 {[%clk 0:01:40]}  Qf5 {[%clk 0:02:49]} 14. Bxg7 {[%clk 0:01:23]}  Kxg7 {[%clk 0:02:50]} 15. Qxd6 {[%clk 0:01:17]}  Qc5 {[%clk 0:02:49]} 16. Qxc5 {[%clk 0:01:06]}  Nxc5 {[%clk 0:02:50]} 17. Rad1 {[%clk 0:00:52]}  Be6 {[%clk 0:02:43]} 18. Bxe6 {[%clk 0:00:50]}  Nxe6 {[%clk 0:02:44]} 19. Rd7 {[%clk 0:00:46]}  Nc5 {[%clk 0:02:38]} 20. Rc7 {[%clk 0:00:41]}  Rac8 {[%clk 0:02:36]} 21. Ree7 {[%clk 0:00:22]}  Rxc7 {[%clk 0:02:35]} 22. Rxc7 {[%clk 0:00:23]}  a5 {[%clk 0:02:34]} 23. Ne5 {[%clk 0:00:12]}  Kf6 {[%clk 0:02:32]} 24. Nd7+ {[%clk 0:00:11]}  Nxd7 {[%clk 0:02:31]} 25. Rxd7 {[%clk 0:00:11]}  Rb8 {[%clk 0:02:30]} 26. Kf1 {[%clk 0:00:10]}  Ke6 {[%clk 0:02:30]} 27. Rd3 {[%clk 0:00:11]}  h5 {[%clk 0:02:28]} 28. Ke2 {[%clk 0:00:11]}  b5 {[%clk 0:02:28]} 29. h4 {[%clk 0:00:11]}  c5 {[%clk 0:02:22]} 30. g3 {[%clk 0:00:10]}  c4 {[%clk 0:02:22]} 31. Rd4 {[%clk 0:00:11]}  Ke5 {[%clk 0:02:19]} 32. Ke3 {[%clk 0:00:10]}  Rb7 {[%clk 0:02:18]} 33. f4+ {[%clk 0:00:10]}  Ke6 {[%clk 0:02:15]} 34. c3 {[%clk 0:00:09]}  f6 {[%clk 0:02:03]} 35. a4 {[%clk 0:00:08]}  bxa4 {[%clk 0:02:02]} 36. Rxc4 {[%clk 0:00:09]}  Rxb2 {[%clk 0:02:02]} 37. Rxa4 {[%clk 0:00:09]}  Rb5 {[%clk 0:02:00]} 38. c4 {[%clk 0:00:07]}  Rb3+ {[%clk 0:01:56]} 39. Kf2 {[%clk 0:00:04]}  Rc3 {[%clk 0:01:51]} 40. Rxa5 {[%clk 0:00:04]}  Rxc4 {[%clk 0:01:51]} 41. Ra6+ {[%clk 0:00:04]}  Kf5 {[%clk 0:01:52]} 42. Ra2 {[%clk 0:00:03]}  Kg4 {[%clk 0:01:51]} 43. Ra3 {[%clk 0:00:04]}  Rc2+ {[%clk 0:01:50]} 44. Kg1 {[%clk 0:00:02]}  Kh3 {[%clk 0:01:36]} 45. Kf1 {[%clk 0:00:00]}  f5 {[%clk 0:01:27]} 0-1

[Event "November 21 Early 2023"]
[Site "https://www.chess.com"]
[Date "2023.11.21"]
[Round "3"]
[White "Rakhmanov, Aleksandr"]
[Black "Ismayil, Malak"]
[Result "1-0"]
[Board "82"]
[TimeControl "180+1"]
[WhiteFideId "4173708"]
[BlackFideId "13412604"]
[WhiteElo "2521"]
[BlackElo "1898"]
[WhiteTeam "FID"]
[BlackTeam "AZE"]
[WhiteClock "0:00:04"]
[BlackClock "0:00:04"]

1. d4 {[%clk 0:03:00]}  Nf6 {[%clk 0:02:54]} 2. c4 {[%clk 0:03:01]}  e6 {[%clk 0:02:54]} 3. Nc3 {[%clk 0:03:01]}  d5 {[%clk 0:02:54]} 4. e3 {[%clk 0:03:02]}  Be7 {[%clk 0:02:53]} 5. Nf3 {[%clk 0:03:02]}  O-O {[%clk 0:02:53]} 6. Bd2 {[%clk 0:02:59]}  c5 {[%clk 0:02:46]} 7. cxd5 {[%clk 0:02:58]}  exd5 {[%clk 0:02:38]} 8. dxc5 {[%clk 0:02:58]}  Bxc5 {[%clk 0:02:39]} 9. Rc1 {[%clk 0:02:58]}  Nc6 {[%clk 0:02:38]} 10. Nb5 {[%clk 0:02:56]}  Bb6 {[%clk 0:02:36]} 11. Be2 {[%clk 0:02:53]}  Bg4 {[%clk 0:02:25]} 12. O-O {[%clk 0:02:53]}  Ne4 {[%clk 0:02:25]} 13. Bc3 {[%clk 0:02:41]}  Re8 {[%clk 0:02:02]} 14. Bd4 {[%clk 0:02:39]}  a6 {[%clk 0:01:46]} 15. Nc3 {[%clk 0:02:14]}  Bxf3 {[%clk 0:01:27]} 16. Bxf3 {[%clk 0:02:14]}  Nxd4 {[%clk 0:01:22]} 17. exd4 {[%clk 0:02:15]}  Rc8 {[%clk 0:01:12]} 18. Qd3 {[%clk 0:02:09]}  Nf6 {[%clk 0:01:10]} 19. Na4 {[%clk 0:02:03]}  Ba7 {[%clk 0:01:03]} 20. Nc5 {[%clk 0:02:01]}  Bxc5 {[%clk 0:00:57]} 21. dxc5 {[%clk 0:02:02]}  Qa5 {[%clk 0:00:57]} 22. Qd4 {[%clk 0:01:50]}  Qxa2 {[%clk 0:00:56]} 23. b4 {[%clk 0:01:47]}  Qa4 {[%clk 0:00:53]} 24. g3 {[%clk 0:01:44]}  a5 {[%clk 0:00:52]} 25. Rb1 {[%clk 0:01:39]}  h6 {[%clk 0:00:44]} 26. Rfc1 {[%clk 0:01:37]}  Red8 {[%clk 0:00:41]} 27. Kg2 {[%clk 0:01:37]}  Rd7 {[%clk 0:00:20]} 28. h4 {[%clk 0:01:33]}  Rcd8 {[%clk 0:00:19]} 29. Bd1 {[%clk 0:01:28]}  Qc6 {[%clk 0:00:17]} 30. bxa5 {[%clk 0:01:22]}  Qe6 {[%clk 0:00:18]} 31. Bf3 {[%clk 0:01:15]}  Qf5 {[%clk 0:00:18]} 32. g4 {[%clk 0:01:03]}  Qg6 {[%clk 0:00:17]} 33. Rb6 {[%clk 0:01:01]}  Re7 {[%clk 0:00:12]} 34. Rcb1 {[%clk 0:00:53]}  Rdd7 {[%clk 0:00:12]} 35. Rc1 {[%clk 0:00:41]}  Re4 {[%clk 0:00:05]} 36. Qd1 {[%clk 0:00:21]}  Rf4 {[%clk 0:00:02]} 37. a6 {[%clk 0:00:20]}  bxa6 {[%clk 0:00:02]} 38. c6 {[%clk 0:00:20]}  Rc7 {[%clk 0:00:02]} 39. Rb8+ {[%clk 0:00:16]}  Kh7 {[%clk 0:00:01]} 40. h5 {[%clk 0:00:15]}  Qg5 {[%clk 0:00:01]} 41. Qd3+ {[%clk 0:00:16]}  g6 {[%clk 0:00:01]} 42. hxg6+ {[%clk 0:00:15]}  fxg6 {[%clk 0:00:02]} 43. Rb6 {[%clk 0:00:16]}  Qe5 {[%clk 0:00:03]} 44. Rb7 {[%clk 0:00:15]}  Ne4 {[%clk 0:00:04]} 45. Rxc7+ {[%clk 0:00:14]}  Qxc7 {[%clk 0:00:04]} 46. Qxd5 {[%clk 0:00:14]}  Ng5 {[%clk 0:00:04]} 47. Qd7+ {[%clk 0:00:11]}  Rf7 {[%clk 0:00:05]} 48. Qxc7 {[%clk 0:00:09]}  Rxc7 {[%clk 0:00:06]} 49. Bd5 {[%clk 0:00:09]}  Kg7 {[%clk 0:00:06]} 50. Rb1 {[%clk 0:00:08]}  Kf6 {[%clk 0:00:03]} 51. Rb7 {[%clk 0:00:06]}  Rc8 {[%clk 0:00:03]} 52. f4 {[%clk 0:00:05]}  Ne6 {[%clk 0:00:04]} 53. Kg3 {[%clk 0:00:04]}  Nd4 {[%clk 0:00:04]} 54. Rf7# {[%clk 0:00:04]} 1-0

[Event "November 21 Early 2023"]
[Site "https://www.chess.com"]
[Date "2023.11.21"]
[Round "3"]
[White "Dragun, Kamil"]
[Black "Rietze, Clemens, Dr."]
[Result "1-0"]
[Board "83"]
[TimeControl "180+1"]
[WhiteFideId "1134167"]
[BlackFideId "24620351"]
[WhiteElo "2551"]
[BlackElo "2288"]
[WhiteTeam "POL"]
[BlackTeam "GER"]
[WhiteClock "0:01:02"]
[BlackClock "0:01:09"]

1. d4 {[%clk 0:03:00]}  Nf6 {[%clk 0:02:59]} 2. c4 {[%clk 0:03:01]}  g6 {[%clk 0:02:59]} 3. Nf3 {[%clk 0:03:02]}  Bg7 {[%clk 0:02:59]} 4. Nc3 {[%clk 0:03:01]}  O-O {[%clk 0:02:59]} 5. e4 {[%clk 0:03:01]}  d6 {[%clk 0:02:59]} 6. Be2 {[%clk 0:03:01]}  Na6 {[%clk 0:02:59]} 7. O-O {[%clk 0:03:01]}  e5 {[%clk 0:03:00]} 8. Be3 {[%clk 0:02:56]}  Ng4 {[%clk 0:02:59]} 9. Bg5 {[%clk 0:02:55]}  f6 {[%clk 0:02:59]} 10. Bh4 {[%clk 0:02:52]}  Nh6 {[%clk 0:02:59]} 11. dxe5 {[%clk 0:02:13]}  dxe5 {[%clk 0:02:58]} 12. Qxd8 {[%clk 0:02:13]}  Rxd8 {[%clk 0:02:58]} 13. Nd5 {[%clk 0:02:13]}  g5 {[%clk 0:02:47]} 14. Bg3 {[%clk 0:02:11]}  c6 {[%clk 0:02:44]} 15. Ne7+ {[%clk 0:01:54]}  Kf8 {[%clk 0:02:43]} 16. Nxc8 {[%clk 0:01:55]}  Raxc8 {[%clk 0:02:44]} 17. Rfd1 {[%clk 0:01:51]}  Ke8 {[%clk 0:02:37]} 18. Nd2 {[%clk 0:01:38]}  Bf8 {[%clk 0:02:32]} 19. Bh5+ {[%clk 0:01:34]}  Nf7 {[%clk 0:02:32]} 20. h4 {[%clk 0:01:27]}  h6 {[%clk 0:02:31]} 21. Nf1 {[%clk 0:01:19]}  Nc5 {[%clk 0:02:29]} 22. f3 {[%clk 0:01:16]}  Nd3 {[%clk 0:02:25]} 23. Rd2 {[%clk 0:01:11]}  Bc5+ {[%clk 0:02:22]} 24. Kh2 {[%clk 0:01:11]}  Nf4 {[%clk 0:02:04]} 25. Bxf4 {[%clk 0:01:10]}  exf4 {[%clk 0:02:02]} 26. Rad1 {[%clk 0:01:11]}  Rxd2 {[%clk 0:01:15]} 27. Rxd2 {[%clk 0:01:12]}  Rc7 {[%clk 0:01:14]} 28. Kh3 {[%clk 0:01:10]}  Ke7 {[%clk 0:01:14]} 29. Bxf7 {[%clk 0:01:08]}  Kxf7 {[%clk 0:01:15]} 30. Kg4 {[%clk 0:01:07]}  Kg6 {[%clk 0:01:12]} 31. h5+ {[%clk 0:01:07]}  Kf7 {[%clk 0:01:13]} 32. Kf5 {[%clk 0:01:05]}  Bg1 {[%clk 0:01:09]} 33. Rd6 {[%clk 0:01:02]} 1-0

[Event "November 21 Early 2023"]
[Site "https://www.chess.com"]
[Date "2023.11.21"]
[Round "3"]
[White "Babikov, Ivan"]
[Black "Visakh N R"]
[Result "0-1"]
[Board "84"]
[TimeControl "180+1"]
[WhiteFideId "4161106"]
[BlackFideId "25012223"]
[WhiteElo "1986"]
[BlackElo "2474"]
[WhiteTeam "RUS"]
[BlackTeam "IND"]
[WhiteClock "0:01:04"]
[BlackClock "0:02:15"]

1. e4 {[%clk 0:03:00]}  c5 {[%clk 0:02:57]} 2. d4 {[%clk 0:03:00]}  cxd4 {[%clk 0:02:56]} 3. c3 {[%clk 0:03:00]}  dxc3 {[%clk 0:02:56]} 4. Nxc3 {[%clk 0:03:01]}  g6 {[%clk 0:02:55]} 5. Nf3 {[%clk 0:03:00]}  Bg7 {[%clk 0:02:54]} 6. Bc4 {[%clk 0:03:00]}  Nc6 {[%clk 0:02:52]} 7. e5 {[%clk 0:02:57]}  d5 {[%clk 0:02:48]} 8. Bxd5 {[%clk 0:02:49]}  e6 {[%clk 0:02:48]} 9. Bxc6+ {[%clk 0:02:48]}  bxc6 {[%clk 0:02:49]} 10. Qxd8+ {[%clk 0:02:47]}  Kxd8 {[%clk 0:02:49]} 11. Bg5+ {[%clk 0:02:33]}  Kc7 {[%clk 0:02:43]} 12. Rc1 {[%clk 0:02:21]}  h6 {[%clk 0:02:41]} 13. Be3 {[%clk 0:02:09]}  Ba6 {[%clk 0:02:36]} 14. Bc5 {[%clk 0:02:04]}  Bf8 {[%clk 0:02:34]} 15. Ne4 {[%clk 0:01:48]}  Bxc5 {[%clk 0:02:29]} 16. Rxc5 {[%clk 0:01:46]}  Ne7 {[%clk 0:02:24]} 17. Nd4 {[%clk 0:01:39]}  Rab8 {[%clk 0:02:17]} 18. b3 {[%clk 0:01:04]}  Rb4 {[%clk 0:02:15]} 0-1